Workbook

Sheet 1 неделя
B3: с 28 по 2 сентября, с 11 по 16 сентября, с 25 по 30 сентября (Казань)
B4: Школа | C4: МБОУ"Тюнтерская СОШ" | F4: Отд./корп | G4: 1-4кл | J4: День
B6: Прием пищи | C6: Раздел | D6: № рец. | E6: Блюдо | F6: Выход, г | G6: Цена, руб | H6: Калорийность, ккал | I6: Белки,г | J6: Жиры,г | K6: Углеводы,г
B7: Завтрак | C7: гор.блюдо | D7: ТТК июль 2023 г | E7: Котлеты "Столичные" | F7: 90 | H7: 83 | I7: 8.10 | J7: 4.05 | K7: 3.40
C8: гор.блюдо | D8: № 302/2015, Дели | E8: Каша гречневая рассыпчатая | F8: 155 | H8: 276 | I8: 6.66 | J8: 9.02 | K8: 41.91
C9: гор.напиток | D9: ТТК | E9: Напиток из замороженной черной смородины | F9: 180 | H9: 40 | I9: 0.09 | J9: 0.04 | K9: 9.64
C10: закуска | D10: ТТК 2023 г | E10: Салат-бар (Морковь свежая порциями, капуста белокач., кукуруза конс., сухарики, масло раст.) | F10: 60 | H10: 94 | I10: 1.56 | J10: 6.16 | K10: 7.78
C11: хлеб | D11: ТТК | E11: Хлебная корзина (хлеб пш., хлеб рж.-пш.) | F11: 40 | H11: 91 | I11: 2.52 | J11: 0.36 | K11: 18.84
B12: ИТОГО | F12: =SUM(F7:F11) -> 525 | H12: =SUM(H7:H11) -> 583.50 | I12: =SUM(I7:I11) -> 18.93 | J12: 19.63 | K12: 81.57
B13: Завтрак | C13: гор.блюдо | D13: ТТК от 19.07.2023 г | E13: Тефтели из говядины в соусе томатном | F13: 90 | H13: 103.00 | I13: 8.60 | J13: 2.80 | K13: 10.90
C14: гор.блюдо | D14: ТТК | E14: Картофель запечённый | F14: 160 | H14: 239 | I14: 4.64 | J14: 7.71 | K14: 37.80
C15: гор.напиток | D15: ТТК 2021 г | E15: Напиток из шиповника | F15: 180 | H15: 37 | I15: 0.01 | K15: 9.16
C16: закуска | D16: № 532/2013г, Самара | E16: Салат-бар (Морковь свежая порциями, сыр, сухарики, масло раст.) | F16: 60 | H16: 117 | I16: 1.56 | J16: 8.72 | K16: 5.73
C17: хлеб | D17: ТТК | E17: Хлебная корзина (хлеб пш., хлеб рж.-пш.) | F17: 40 | H17: 91 | I17: 2.52 | J17: 0.36 | K17: 18.84
B18: ИТОГО | F18: =SUM(F13:F17) -> 530 | H18: =SUM(H13:H17) -> 587 | I18: =SUM(I13:I17) -> 17.33 | J18: =SUM(J13:J17) -> 19.59 | K18: =SUM(K13:K17) -> 82.43
B19: Завтрак | C19: гор.блюдо | D19: ТТК 2022 г | E19: Гуляш из филе грудок индейки | F19: 90 | H19: 152 | I19: 11.90 | J19: 8.20 | K19: 11.85
C20: гор.блюдо | D20: ТТК 2021 г | E20: Каша рисовая вязкая | F20: 150 | H20: 142 | I20: 2.3 | J20: 4.13 | K20: 23.94
C21: гор.напиток | D21: ТТК | E21: Компот из плодов или ягод сушеных | F21: 180 | H21: 71 | I21: 0.72 | J21: 0.06 | K21: 16.61
C22: закуска | D22: № 532/2013г, Самара | E22: Салат-бар (Помидоры свежая порциями, капуста белокач., зел. горошек конс., сухарики, масло раст.) | F22: 60 | H22: 89 | I22: 1.55 | J22: 6.12 | K22: 6.63
C23: хлеб | D23: ТТК | E23: Хлебная корзина (хлеб пш., хлеб рж.-пш.) | F23: 40 | H23: 91 | I23: 2.52 | J23: 0.36 | K23: 18.84
C24: фрукт | D24: № 532/2013г, Самара | E24: Десерт фруктовый | F24: 90 | H24: 42 | I24: 0.36 | J24: 0.36 | K24: 8.82
B25: ИТОГО | F25: =SUM(F19:F24) -> 610 | H25: =SUM(H19:H24) -> 587 | I25: =SUM(I19:I24) -> 19.35 | J25: =SUM(J19:J24) -> 19.23 | K25: =SUM(K19:K24) -> 86.69
B26: Завтрак | C26: гор.блюдо | D26: №243/2015 | E26: Сосиски отварные с соусом "Переменка" | F26: 110 | H26: 131 | I26: 10.1 | J26: 4.8 | K26: 11.75
C27: гор.блюдо | D27: №202/2015 | E27: Макаронные изделия отварные | F27: 150 | H27: 210 | I27: 5.64 | J27: 4.46 | K27: 35.94
C28: гор.напиток | D28: ТТК 2021 г | E28: Компот из замор. Вишни | F28: 180 | H28: 43 | I28: 0.10 | J28: 0.03 | K28: 10.41
C29: хлеб | D29: ТТК | E29: Хлебная корзина (хлеб пш., хлеб рж.-пш.) | F29: 40 | H29: 91 | I29: 2.52 | J29: 0.36 | K29: 18.84
C30: закуска | D30: № 532/2013г, Самара | E30: Салат-бар (Помидоры свежие порциями, помидоры свежие порциями, кукуруза консервированная, сухарики, масло раст.) | F30: 60 | H30: 88 | I30: 1.3 | J30: 6.19 | K30: 6.6
B31: ИТОГО | F31: =SUM(F26:F30) -> 540 | H31: =SUM(H26:H30) -> 563 | I31: =SUM(I26:I30) -> 19.66 | J31: =SUM(J26:J30) -> 15.84 | K31: =SUM(K26:K30) -> 83.54
B32: Завтрак | C32: гор.блюдо | D32: ТТК 2021 г | E32: Биточки рыбные из фарша минтая | F32: 90 | H32: 98 | I32: 9.8 | J32: 2.01 | K32: 10.2
C33: гор.блюдо | D33: №312/2015 г | E33: Пюре картофельное | F33: 155 | H33: 188 | I33: 3.54 | J33: 8.59 | K33: 23.53
C34: гор.напиток | D34: ТТК 2021 г | E34: Напиток из замороженной черной смородины | F34: 180 | H34: 40 | I34: 0.09 | J34: 0.04 | K34: 9.64
C35: хлеб | D35: ТТК | E35: Хлебная корзина (хлеб пш., хлеб рж.-пш.) | F35: 40 | H35: 91 | I35: 2.52 | J35: 0.36 | K35: 18.84
C36: печенье | D36: АКТ 2021 г | E36: Печенье сдобное Шоколадное | F36: 15 | H36: 66 | I36: 1.21 | J36: 2.3 | K36: 10.25
C37: закуска | D37: № 532/2013г, Самара | E37: Салат-бар (Помидоры свежие порциями, огурцы соленые, фасоль конс., сухарики, масло раст.) | F37: 60 | H37: 90 | I37: 1.62 | J37: 6.1 | K37: 6.92
B38: ИТОГО | F38: =SUM(F32:F37) -> 540 | H38: =SUM(H32:H37) -> 573 | I38: =SUM(I32:I37) -> 18.78 | J38: =SUM(J32:J37) -> 19.40 | K38: =SUM(K32:K37) -> 79.38
B39: Завтрак | C39: гор.блюдо | D39: ТТК 2020 г | E39: Пельмени "Для умников и умниц" с соусом "Переменка" | F39: 160 | H39: 303 | I39: 13.9 | J39: 8.67 | K39: 42.8
C40: гор.напиток | D40: № 648/2004 г | E40: Кисель из концентрата | F40: 180 | H40: 47 | K40: 11.79
C41: хлеб | D41: ТТК | E41: Хлебная корзина (хлеб пш., хлеб рж.-пш.) | F41: 40 | H41: 91 | I41: 2.52 | J41: 0.36 | K41: 18.84
C42: фрукт | D42: № 532/2013 г | E42: Десерт фруктовый | F42: 100 | H42: 47 | I42: 0.4 | J42: 0.4 | K42: 9.8
C43: закуска | D43: № 532/2013г, Самара | E43: Салат-бар (Помидоры свежие порциями, огурцы свежие порциями, масло раст.) | F43: 60 | H43: 99 | I43: 0.45 | J43: 10.06 | K43: 1.42
B44: ИТОГО | F44: =SUM(F39:F43) -> 540 | H44: =SUM(H39:H43) -> 587 | I44: =SUM(I39:I43) -> 17.27 | J44: 19.49 | K44: =SUM(K39:K43) -> 84.65

Sheet 2 неделя
B4: с 4 по 9 сентября, с 18 по 23 сентября (Казань)
B5: Школа | C5: МБОУ"Тюнтерская СОШ" | F5: Отд./корп | G5: 1-4кл | J5: День
B7: Прием пищи | C7: Раздел | D7: № рец. | E7: Блюдо | F7: Выход, г | G7: Цена, руб | H7: Калорийность, ккал | I7: Белки,г | J7: Жиры,г | K7: Углеводы,г
B8: Завтрак | C8: гор.блюдо | D8: ТТК 2020 | E8: Ежики с мясом и рисом в соусе томатном | F8: 100 | H8: 49 | I8: 4.60 | J8: 4.00 | K8: 3.23
C9: гор.блюдо | D9: №202/2015 г | E9: Макаронные изделия отварные | F9: 150 | H9: 207 | I9: 5.64 | J9: 4.46 | K9: 35.94
C10: гор.напиток | D10: №348/2015 | E10: Компот из плодов сушеных (урюк) | F10: 180 | H10: 71 | I10: 0.72 | J10: 0.06 | K10: 16.61
C11: закуска | D11: ТТК 2023 г | E11: Салат-бар (Морковь свежая порциями, капуста белокач., сыр, сухари, масло раст.) | F11: 60 | H11: 122 | I11: 3.91 | J11: 8.74 | K11: 6.6
C12: хлеб | D12: ТТК | E12: Хлебная корзина (хлеб пш., хлеб рж.-пш.) | F12: 40 | H12: 91 | I12: 2.52 | J12: 0.36 | K12: 18.84
C13: печенье | D13: АКТ 2021 г | E13: Печенье сдобное Вкусное | F13: 30 | H13: 47 | I13: 2.1 | J13: 2.1 | K13: 5.1
B14: ИТОГО | F14: =SUM(F8:F13) -> 560 | H14: =SUM(H8:H13) -> 587.00 | I14: =SUM(I8:I13) -> 19.49 | J14: 19.72 | K14: 86.32
B15: Завтрак | C15: гор.блюдо | D15: ТТК 2022 г | E15: Котлеты "Аппетитные" | F15: 90 | H15: 158.00 | I15: 11.20 | J15: 4.45 | K15: 18.50
C16: гор.блюдо | D16: №312/2015 г | E16: Пюре картофельное | F16: 150 | H16: 179 | I16: 3.32 | J16: 8.28 | K16: 22.07
C17: гор.напиток | D17: ТТК 2022 г | E17: Компот из замороженной компотной смеси | F17: 180 | H17: 41 | I17: 0.12 | J17: 0.02 | K17: 10.03
C18: закуска | D18: ТТК 2023 г | E18: Салат-бар (Морковь свежая порциями, капуста белокач., кукуруза конс., сухарики, масло раст.) | F18: 60 | H18: 94 | I18: 1.56 | J18: 6.17 | K18: 7.78
C19: хлеб | D19: ТТК | E19: Хлебная корзина (хлеб пш., хлеб рж.-пш.) | F19: 40 | H19: 91 | I19: 2.52 | J19: 0.36 | K19: 18.84
B20: ИТОГО | F20: =SUM(F15:F19) -> 520 | H20: =SUM(H15:H19) -> 563 | I20: =SUM(I15:I19) -> 18.72 | J20: =SUM(J15:J19) -> 19.28 | K20: =SUM(K15:K19) -> 77.22
B21: Завтрак | C21: гор.блюдо | D21: ТТК 2021 г | E21: Плов с куриными грудками | F21: 200 | H21: 281 | I21: 14.01 | J21: 12.30 | K21: 30.20
C22: гор.напиток | D22: ТТК | E22: Компот из плодов сушеных (урюк) | F22: 180 | H22: 71 | I22: 0.72 | J22: 0.06 | K22: 16.61
C23: закуска | D23: № 532/2013г, Самара | E23: Салат-бар (Помидоры свежая порциями, капуста белокач., зел. горошек конс., сухарики, масло раст.) | F23: 60 | H23: 89 | I23: 1.55 | J23: 6.12 | K23: 6.63
C24: хлеб | D24: ТТК | E24: Хлебная корзина (хлеб пш., хлеб рж.-пш.) | F24: 40 | H24: 91 | I24: 2.52 | J24: 0.36 | K24: 18.84
C25: фрукт | D25: № 338/2015 | E25: Плодые свежие (яблоко) | F25: 120 | H25: 53 | I25: 0.48 | J25: 0.48 | K25: 11.76
B26: ИТОГО | F26: =SUM(F21:F25) -> 600 | H26: =SUM(H21:H25) -> 585 | I26: =SUM(I21:I25) -> 19.28 | J26: =SUM(J21:J25) -> 19.32 | K26: =SUM(K21:K25) -> 84.04
B27: Завтрак | C27: гор.блюдо | D27: № 2023 г | E27: Котлеты Домашние | F27: 90 | H27: 97 | I27: 7.1 | J27: 5.1 | K27: 9.9
C28: гор.блюдо | D28: №302/2004 | E28: Каша гречневая рассыпчатая | F28: 150 | H28: 242 | I28: 6.62 | J28: 5.39 | K28: 41.87
C29: гор.напиток | D29: ТТК 2022 г | E29: Напиток из замороженной черной смородины | F29: 180 | H29: 40 | I29: 0.09 | J29: 0.04 | K29: 9.64
C30: хлеб | D30: ТТК | E30: Хлебная корзина (хлеб пш., хлеб рж.-пш.) | F30: 40 | H30: 91 | I30: 2.52 | J30: 0.36 | K30: 18.84
C31: закуска | D31: № 532/2013г, Самара | E31: Салат-бар (Свекла отвар.тертая, морковь свежая порциями, сыр, сухарики, масло раст. | F31: 60 | H31: 117 | I31: 1.56 | J31: 8.74 | K31: 7.46
B32: ИТОГО | F32: =SUM(F27:F31) -> 520 | H32: =SUM(H27:H31) -> 587 | I32: =SUM(I27:I31) -> 17.89 | J32: =SUM(J27:J31) -> 19.63 | K32: =SUM(K27:K31) -> 87.71
B33: Завтрак | C33: гор.блюдо | D33: ТТК 2021 г | E33: Биточки рыбные из фарша минтая | F33: 90 | H33: 98 | I33: 9.8 | J33: 2.01 | K33: 10.2
C34: гор.блюдо | D34: №312/2015 г | E34: Пюре картофельное | F34: 150 | H34: 179 | I34: 3.32 | J34: 8.28 | K34: 22.07
C35: гор.напиток | D35: ТТК 2021 г | E35: Компот из плодов сушеных (урюк) | F35: 180 | H35: 71 | I35: 0.72 | J35: 0.06 | K35: 16.61
C36: хлеб | D36: ТТК | E36: Хлебная корзина (хлеб пш., хлеб рж.-пш.) | F36: 40 | H36: 91 | I36: 2.52 | J36: 0.36 | K36: 18.84
C37: закуска | D37: № 532/2013г, Самара | E37: Салат-бар (Помидоры свежие порциями, огурцы огурцы свежие, фасоль конс., сухарики, масло раст.) | F37: 60 | H37: 90 | I37: 1.62 | J37: 6.1 | K37: 6.92
C38: фрукт | D38: №532/2013 г | E38: Десерт фруктовый (яблоки) | F38: 80 | H38: 42 | I38: 0.36 | J38: 0.36 | K38: 8.82
B39: ИТОГО | F39: =SUM(F33:F38) -> 600 | H39: 537 | I39: =SUM(I33:I38) -> 18.34 | J39: =SUM(J33:J38) -> 17.17 | K39: =SUM(K33:K38) -> 83.46
B40: Завтрак | C40: гор.блюдо | D40: №243/2015 г | E40: Сосиски отварные с соусом "Переменка" | F40: 110 | H40: 131 | I40: 10.1 | J40: 4.8 | K40: 11.75
C41: гор.блюдо | D41: №202/2015 | E41: Макаронные изделия отварные | F41: 150 | H41: 207 | I41: 5.64 | J41: 4.46 | K41: 35.94
C42: гор. напиток | D42: ТТК 2022 г | E42: Компот из замороженной компотной смеси | F42: 180 | H42: 41 | I42: 0.12 | J42: 0.02 | K42: 10.03
C43: хлеб | D43: ТТК | E43: Хлебная корзина (хлеб пш., хлеб рж.-пш.) | F43: 40 | H43: 91 | I43: 2.52 | J43: 0.36 | K43: 18.84
C44: закуска | D44: № 532/2013г, Самара | E44: Салат-бар (Помидоры свежие порциями, огурцы свежие порциями, кукуруза конс., масло раст.) | F44: 60 | H44: 104 | I44: 0.63 | J44: 10.13 | K44: 2.32
B45: ИТОГО | F45: =SUM(F40:F44) -> 540 | H45: =SUM(H40:H44) -> 574 | I45: =SUM(I40:I44) -> 19.01 | J45: =SUM(J40:J44) -> 19.77 | K45: =SUM(K40:K44) -> 78.88
